bitfinex/quotes_ETHUSD_20251122
["timestamp","ask_amount","ask_price","bid_price","bid_amount"]
[1763800078010,0.4964,2732.6,2732.0,0.3254]
[1763800078243,0.04574565,2732.5,2732.0,0.001]
[1763800078409,0.54214732,2732.4,2732.0,0.001]
[1763800078610,0.4832,2732.1,2732.0,0.001]
[1763800079248,0.124,2732.6,2732.0,0.3254]
[1763800079463,0.4964,2732.7,2732.0,0.3254]
[1763800080112,0.4964,2732.7,2732.1,0.1407]
[1763800080683,0.04573226,2733.3,2732.1,0.1407]
[1763800080949,0.04573226,2733.3,2732.6,0.3244]
[1763800080950,0.4964,2733.3,2732.6,0.3244]
[1763800081751,0.4832,2732.7,2732.1,0.1407]
[1763800082118,0.3122,2733.4,2732.1,0.1407]
[1763800082434,0.4964,2733.1,2732.1,0.1407]
[1763800083239,0.124,2733.0,2732.1,0.4651]
[1763800083624,0.4964,2733.1,2732.2,0.3244]
[1763800083829,0.4964,2733.1,2732.1,0.4651]
[1763800084639,0.4964,2733.1,2732.1,0.1407]
[1763800086385,0.4984,2733.1,2732.1,0.1407]
[1763800086685,0.4865,2733.0,2732.1,0.1407]
[1763800087655,0.04573895,2732.9,2732.1,0.1407]
[1763800088159,0.4865,2732.9,2732.1,0.1407]
[1763800088663,0.04574063,2732.8,2732.1,0.1407]
[1763800089054,0.53224063,2732.8,2732.1,0.1407]
[1763800090166,0.4865,2732.8,2732.1,0.1407]
[1763800090664,0.0457423,2732.7,2732.1,0.1407]
[1763800091068,0.5322423,2732.7,2732.1,0.1407]
[1763800091299,0.4521,2732.2,2732.0,0.001]
[1763800092966,0.4521,2732.1,2732.0,0.001]
[1763800093493,0.9386,2732.1,2732.0,0.001]
[1763800099187,0.4521,2732.1,2732.0,0.001]
[1763800099519,0.124,2732.3,2732.0,0.001]
[1763800100032,0.96016353,2732.8,2732.2,0.3244]
[1763800100190,0.4521,2732.3,2732.0,0.001]
[1763800100622,0.4865,2732.6,2732.0,0.001]
[1763800100796,0.04574565,2732.5,2732.0,0.001]
[1763800100997,0.4865,2732.6,2732.0,0.001]
[1763800101498,0.4865,2732.6,2732.1,0.1407]
[1763800101823,0.04574565,2732.5,2732.0,0.001]
[1763800102024,1.38123298,2732.8,2732.4,0.3244]
[1763800102198,0.77073298,2732.7,2732.4,0.3244]
[1763800102604,0.6105,2732.8,2732.4,0.3244]
[1763800102922,0.6105,2732.8,2732.1,0.1407]
[1763800103415,0.77088465,2733.0,2732.2,0.3244]
[1763800103721,1.38338465,2733.1,2732.2,0.3244]
[1763800103913,0.6125,2733.1,2732.2,0.3244]
[1763800104110,0.002,2733.1,2732.2,0.3244]
[1763800104318,0.002,2733.1,2732.2,1.23139264]
[1763800104500,0.002,2733.1,2732.3,0.51561584]
[1763800104690,0.002,2733.1,2732.3,0.84001584]
[1763800104890,0.002,2733.1,2732.4,0.3244]
[1763800106339,0.4865,2733.0,2732.1,0.1407]
[1763800106628,0.4521,2732.5,2732.0,0.001]
[1763800106839,0.4521,2732.5,2732.1,0.1407]
[1763800107135,0.6105,2732.9,2732.1,0.1407]
[1763800107542,0.4865,2732.8,2732.1,0.1407]
[1763800107951,0.124,2732.9,2732.1,0.1407]
[1763800108096,0.6105,2732.9,2732.1,0.4651]
[1763800108496,0.002,2733.1,2732.1,0.1407]
[1763800108732,0.002,2733.1,2732.2,0.3244]
[1763800113526,0.4865,2733.0,2732.1,0.1407]
[1763800113727,0.4865,2733.0,2732.1,0.2647]
[1763800114064,0.04573895,2732.9,2732.1,0.1407]
[1763800114241,0.4865,2733.0,2732.1,0.1407]
[1763800114436,0.002,2733.1,2732.2,0.3244]
[1763800115032,0.002,2733.1,2732.1,0.1407]
[1763800115033,0.4885,2733.1,2732.1,0.1407]
[1763800115242,0.04573728,2733.0,2732.1,0.1407]
[1763800115449,0.4885,2733.1,2732.1,0.1407]
[1763800115778,0.4576,2733.0,2732.1,0.1407]
[1763800119164,0.4576,2733.0,2732.1,0.4651]
[1763800119676,0.4576,2733.0,2732.2,0.3244]
[1763800122674,0.002,2733.1,2732.2,0.3244]
[1763800123042,0.002,2733.1,2732.3,3.802]
[1763800123344,0.002,2733.1,2732.4,0.41264]
[1763800123542,0.002,2733.0,2732.4,0.73704]
[1763800125624,0.002,2733.0,2732.4,0.3244]
[1763800126524,0.4553,2733.0,2732.1,0.1407]
[1763800126678,0.4553,2733.0,2732.1,0.4651]
[1763800127292,0.4553,2733.0,2732.1,0.1407]
[1763800127476,0.4553,2733.0,2732.2,0.3244]
[1763800127684,0.002,2733.0,2732.2,0.3244]
[1763800128477,0.002,2733.0,2732.9,0.3244]
[1763800130578,0.002,2733.0,2732.9,0.6488]
[1763800133728,0.002,2733.0,2732.9,1.18271522]
[1763800135534,0.002,2733.0,2732.9,4.8418319]
[1763800135730,0.002,2733.0,2732.9,1.18271522]
[1763800136106,0.002,2733.0,2732.9,0.6488]
[1763800136711,0.002,2733.0,2732.9,0.3244]
[1763800137051,0.002,2733.0,2732.9,0.7728]
[1763800137343,0.002,2733.0,2732.9,0.4484]
[1763800137631,0.002,2733.0,2732.9,0.3244]
[1763800138423,0.002,2733.0,2732.8,0.124]
[1763800138813,0.002,2733.0,2732.1,0.1407]
[1763800139015,0.002,2733.0,2732.5,0.124]
[1763800139215,0.002,2733.0,2732.9,0.3244]
[1763800141051,0.002,2733.0,2732.2,3.65994808]
[1763800141052,0.9217,2733.0,2732.0,0.001]
[1763800141237,0.5347,2732.9,2732.5,0.124]
[1763800141441,0.988,2732.9,2732.4,0.124]
[1763800141637,0.4533,2732.8,2732.4,0.124]
[1763800142353,0.4533,2732.8,2732.1,0.1407]
[1763800142354,0.4664,2732.5,2732.1,0.2647]
[1763800143219,0.4533,2732.8,2732.1,0.2647]
[1763800143422,0.0683,2732.9,2732.1,0.5891]
[1763800143655,0.0683,2732.9,2732.1,0.1407]
[1763800143854,0.5216,2732.9,2732.2,0.124]
[1763800145363,0.5216,2732.9,2732.1,0.1407]
[1763800145863,0.5216,2732.9,2732.1,0.124]
[1763800147157,0.5216,2732.9,2732.0,0.001]
[1763800148269,0.5216,2732.9,2732.1,0.1407]
[1763800148480,0.5216,2732.9,2732.1,0.4651]
[1763800148641,0.002,2733.0,2732.2,0.3244]
[1763800149477,0.002,2733.0,2732.3,0.42671]
[1763800149684,0.002,2733.0,2732.4,0.124]
[1763800149878,0.1868,2732.9,2732.4,0.124]
[1763800150282,0.4602,2732.8,2732.3,0.55071]
[1763800151235,0.1868,2732.9,2732.3,0.55071]
[1763800151947,0.002,2733.0,2732.8,0.3244]
[1763800152949,0.002,2733.0,2732.4,0.3244]
[1763800153150,0.002,2733.0,2732.6,0.124]
[1763800153354,0.002,2733.0,2732.9,0.3244]
[1763800153887,0.002,2733.0,2732.6,0.124]
[1763800154070,0.4535,2733.0,2732.6,0.124]
[1763800154854,0.4535,2733.0,2732.6,0.54904]
[1763800155887,0.1868,2732.9,2732.6,0.54904]
[1763800156076,0.647,2732.9,2732.6,0.54904]
[1763800156782,0.1868,2732.9,2732.6,0.54904]
[1763800156994,0.002,2733.0,2732.6,0.54904]
[1763800157211,0.002,2733.0,2732.9,0.3244]
[1763800157357,0.002,2733.0,2732.9,0.6488]
[1763800158079,0.002,2733.0,2732.9,4.71342068]
[1763800158290,0.002,2733.0,2732.9,1.178304]
[1763800158894,0.002,2733.0,2732.9,4.71342068]
[1763800159191,0.002,2733.0,2732.9,5.71820713]
[1763800159393,0.002,2733.0,2732.9,6.62519977]
[1763800160555,0.002,2733.0,2732.9,2.96608309]
[1763800160757,0.002,2733.0,2732.9,2.08529664]
[1763800161191,0.002,2733.0,2732.9,5.74441332]
[1763800161796,0.002,2733.0,2732.9,1.67979264]
[1763800163213,0.002,2733.0,2732.9,5.74441332]
[1763800164922,0.002,2733.0,2732.9,9.24816111]
[1763800165127,0.002,2733.0,2732.9,10.94744648]
[1763800167381,0.002,2733.3,2733.0,5.49089664]
[1763800167729,0.002,2733.3,2733.2,12.59009222]
[1763800168014,0.002,2733.6,2733.2,12.59009222]
[1763800168015,0.002,2733.6,2733.3,9.14947784]
[1763800168217,0.002,2733.6,2733.5,7.73739958]
[1763800168425,0.002,2733.6,2733.4,0.124]
[1763800168426,0.002,2733.6,2733.1,0.14654027]
[1763800168621,0.4515,2733.2,2732.4,0.124]
[1763800168841,0.4602,2733.5,2732.4,0.124]
[1763800169046,0.002,2733.6,2733.4,0.4161]
[1763800169207,0.002,2733.6,2733.5,0.124]
[1763800169611,0.002,2733.6,2733.5,0.853904]
[1763800169849,0.002,2733.6,2733.5,1.178304]
[1763800170057,0.002,2733.6,2733.5,2.2938263]
[1763800170209,0.002,2733.6,2733.5,1.9694263]
[1763800170817,0.002,2733.6,2733.5,5.62773981]
[1763800171314,0.002,2733.6,2733.5,1.06243366]
[1763800171517,0.002,2733.6,2733.5,5.62773981]
[1763800171840,0.002,2733.6,2733.5,1.1155223]
[1763800172040,0.002,2733.6,2733.5,1.03099264]
[1763800172606,0.4535,2733.6,2733.5,1.03099264]
[1763800173422,0.002,2733.6,2733.5,1.03099264]
[1763800173623,0.4535,2733.6,2733.5,1.03099264]
[1763800174231,0.002,2733.6,2733.5,1.35539264]
[1763800174427,0.002,2733.6,2733.5,2.23698988]
[1763800175637,0.002,2733.6,2733.5,1.91258988]
[1763800175840,0.9554,2733.6,2733.5,1.91258988]
[1763800176165,0.4672,2733.6,2733.5,1.91258988]
[1763800176364,0.002,2733.6,2733.5,1.91258988]
[1763800177464,0.4672,2733.6,2733.5,1.03099264]
[1763800178258,0.4672,2733.6,2733.5,0.124]
[1763800179561,0.9554,2733.6,2732.5,8.49070741]
[1763800179761,0.4652,2733.4,2732.7,0.90699264]
[1763800179961,0.4652,2733.4,2732.9,0.405504]
[1763800180163,0.4652,2733.4,2733.0,0.124]
[1763800180364,0.002,2733.6,2733.1,0.405504]
[1763800180679,0.002,2733.6,2733.3,0.405504]
[1763800180969,0.002,2733.6,2733.5,0.405504]
[1763800181473,0.002,2733.6,2733.5,0.729904]
[1763800181861,0.002,2733.6,2733.5,1.054304]
[1763800182062,0.002,2733.6,2733.5,0.729904]
[1763800182239,0.4672,2733.6,2733.5,0.405504]
[1763800182741,0.002,2733.6,2733.5,0.405504]
[1763800182941,0.002,2733.6,2733.5,0.729904]
[1763800183895,0.002,2733.6,2733.5,1.054304]
[1763800184094,0.002,2733.6,2733.5,9.99599703]
[1763800184299,0.002,2733.6,2733.5,9.42161015]
[1763800184598,0.002,2733.6,2733.5,13.40361015]
[1763800185100,0.002,2733.6,2733.5,9.89183745]
[1763800185296,0.002,2733.6,2733.5,9.22121015]
[1763800185503,0.002,2733.6,2733.5,7.1752712]
[1763800185706,0.002,2733.6,2733.5,10.83358471]
[1763800186362,0.002,2733.6,2733.5,14.69158471]
[1763800186563,0.002,2733.6,2733.5,14.56758471]
[1763800186766,0.002,2733.6,2733.5,6.8508712]
[1763800187496,0.002,2733.6,2733.5,2.7244712]
[1763800187805,0.002,2733.6,2733.5,1.43649664]
[1763800187989,0.4672,2733.6,2733.1,0.0917]
[1763800188498,0.4672,2733.6,2733.3,0.405504]
[1763800188666,0.9554,2733.6,2733.3,0.405504]
[1763800189063,0.4652,2733.4,2733.3,0.405504]
[1763800189466,0.002,2733.6,2733.3,0.729904]
[1763800189774,0.002,2733.6,2733.2,1.03099264]
[1763800189975,0.002,2733.6,2733.4,0.90699264]
[1763800190174,0.4882,2733.5,2733.4,5.11449664]
[1763800190491,0.4882,2733.5,2733.4,5.23849664]
[1763800190492,0.9534,2733.5,2733.4,5.23849664]
[1763800191395,0.9534,2733.5,2732.9,7.30630628]
[1763800191590,0.9534,2733.4,2733.0,0.124]
[1763800191789,0.9534,2733.4,2733.1,0.74303063]
[1763800191988,0.4652,2733.1,2733.0,0.124]
[1763800192510,0.9534,2733.1,2732.8,1.3902919]
[1763800192677,0.4652,2732.9,2732.8,0.48329926]
[1763800192877,0.6644,2732.9,2732.8,0.48329926]
[1763800193078,1.1526,2732.9,2732.8,0.124]
[1763800193517,0.002,2733.6,2732.8,0.3244]
[1763800193686,0.4882,2733.5,2732.9,0.406504]
[1763800194521,0.002,2733.6,2733.1,1.31249664]
[1763800194717,0.002,2733.6,2733.3,0.405504]
[1763800195011,0.4902,2733.6,2733.3,0.405504]
[1763800195212,0.4652,2733.4,2733.2,0.124]
[1763800195377,0.4652,2733.3,2733.2,0.124]
[1763800196109,0.9534,2733.3,2733.2,0.124]
[1763800196517,0.9534,2733.3,2732.9,0.125]
[1763800196814,0.4882,2733.2,2732.9,0.001]
[1763800197010,0.4652,2733.0,2732.9,0.001]
[1763800197378,0.4652,2733.0,2732.9,0.125]
[1763800197813,0.4882,2733.3,2732.9,0.125]
[1763800197978,0.4882,2733.5,2732.9,0.125]
[1763800198378,0.4652,2733.0,2732.9,0.125]
[1763800198688,0.4652,2733.0,2732.9,0.001]
[1763800198910,0.9534,2733.0,2732.9,0.001]
[1763800200162,0.4652,2733.0,2732.9,0.001]
[1763800200804,0.9534,2733.0,2732.9,0.001]
[1763800206069,0.002,2733.6,2732.9,0.3254]
[1763800206206,0.002,2733.6,2733.1,0.3244]
[1763800206639,0.002,2733.6,2732.9,0.001]
[1763800206640,0.4798,2733.2,2732.9,0.001]
[1763800206865,0.4713,2733.0,2732.9,0.001]
[1763800207346,0.002,2733.6,2732.9,0.001]
[1763800207552,0.4888,2733.3,2732.9,0.001]
[1763800209265,0.002,2733.6,2732.9,0.001]
[1763800209266,0.4908,2733.6,2732.9,0.001]
[1763800209992,0.4908,2733.6,2732.9,0.125]
[1763800210651,0.4908,2733.6,2732.9,0.001]
[1763800210861,0.4908,2733.6,2732.9,0.125]
[1763800211240,0.002,2733.6,2732.9,0.125]
[1763800211788,0.002,2733.6,2733.1,0.405504]
[1763800212143,0.002,2733.6,2733.2,0.0917]
[1763800212338,0.4888,2733.5,2733.1,0.405504]
[1763800212582,0.002,2733.6,2733.1,0.497204]
[1763800212846,0.002,2733.6,2733.0,0.50155317]
[1763800212847,0.4908,2733.6,2733.0,0.50155317]
[1763800213138,0.4908,2733.6,2732.9,0.001]
[1763800213139,0.4798,2733.1,2732.9,0.001]
[1763800213367,0.002,2733.6,2733.0,0.4484]
[1763800213581,0.002,2733.6,2733.0,1.35539264]
[1763800213784,0.002,2733.6,2733.1,0.0917]
[1763800214150,0.4908,2733.6,2733.1,0.0917]
[1763800214861,0.002,2733.6,2733.2,0.405504]
[1763800215463,0.002,2733.6,2733.3,0.405504]
[1763800216066,0.002,2733.6,2733.5,0.3244]
[1763800216272,0.002,2733.6,2733.5,0.4484]
[1763800216453,0.002,2733.6,2733.5,0.853904]
[1763800216887,0.002,2733.6,2733.5,1.42828152]
[1763800217291,0.002,2733.6,2733.5,6.31798767]
[1763800217656,0.002,2733.6,2733.5,5.86958767]
[1763800217970,0.002,2733.6,2733.5,5.99358767]
[1763800218360,0.002,2733.6,2733.5,6.31798767]
[1763800219793,0.002,2733.6,2733.5,5.86958767]
[1763800220084,0.002,2733.6,2733.5,5.99358767]
[1763800220402,0.4818,2733.6,2733.5,1.88687416]
[1763800220620,0.9706,2733.6,2733.3,0.4888]
[1763800220813,0.4798,2733.4,2733.3,0.4888]
[1763800220953,0.4798,2733.4,2733.3,0.6128]
[1763800221158,0.4888,2733.5,2733.3,0.124]
[1763800221694,0.9686,2733.4,2733.3,0.124]
[1763800222193,0.9686,2733.4,2732.9,0.001]
[1763800222395,0.4888,2733.3,2733.1,0.124]
[1763800222691,0.4798,2733.2,2733.1,0.124]
[1763800223288,0.9686,2733.2,2733.0,0.124]
[1763800223695,0.9686,2733.1,2732.9,0.001]
[1763800223994,0.4798,2733.0,2732.9,0.001]
[1763800224195,0.9686,2733.0,2732.9,0.001]
[1763800225902,0.4798,2733.0,2732.9,0.001]
[1763800226594,0.002,2733.6,2732.9,0.001]
[1763800226595,0.4908,2733.6,2733.0,0.405504]
[1763800226794,0.4908,2733.6,2733.0,0.124]
[1763800227299,0.4908,2733.6,2733.0,0.529504]
[1763800227471,0.4908,2733.6,2733.1,0.41896006]
[1763800227680,0.4908,2733.6,2733.1,0.124]
[1763800229191,0.4908,2733.6,2733.2,0.405504]
[1763800229416,0.002,2733.6,2733.2,0.405504]
[1763800229902,0.002,2733.6,2733.2,1.63689664]
[1763800230515,0.002,2733.6,2733.2,0.405504]
[1763800230704,0.4888,2733.5,2733.3,0.124]
[1763800231093,0.002,2733.6,2733.3,0.124]
[1763800231503,0.002,2733.6,2733.2,0.405504]
[1763800231707,0.002,2733.6,2733.4,0.124]
[1763800232104,0.002,2733.6,2733.5,0.405504]
[1763800232283,0.002,2733.6,2733.5,0.729904]
[1763800232485,0.002,2733.9,2733.5,0.729904]
[1763800232486,0.002,2733.9,2733.5,6.22378378]
[1763800232687,0.002,2734.4,2733.9,0.405504]
[1763800232881,0.002,2734.4,2734.1,6.59584676]
[1763800233113,0.002,2734.4,2734.1,1.75889664]
[1763800233317,0.002,2734.4,2734.1,5.73880733]
[1763800233631,0.002,2734.4,2734.1,6.67845232]
[1763800233827,0.002,2734.7,2734.1,6.67845232]
[1763800234138,0.33119139,2735.0,2734.2,1.46809664]
[1763800234920,0.33119139,2735.0,2734.3,3.65724317]
[1763800235118,0.33119139,2735.0,2734.2,1.46809664]
[1763800235291,0.33119139,2735.0,2734.4,0.405504]
[1763800236739,0.1874,2735.1,2734.4,0.405504]
[1763800236943,0.471,2735.0,2734.5,0.124]
[1763800237141,0.471,2735.0,2734.6,0.124]
[1763800237544,0.4651,2734.7,2734.6,0.124]
[1763800237948,0.9361,2734.7,2733.7,0.1556]
[1763800238123,0.2126,2734.5,2733.8,0.124]
[1763800238325,0.2126,2734.5,2733.9,0.405504]
[1763800238622,0.6836,2734.5,2733.9,0.405504]
[1763800239223,0.4626,2734.0,2733.5,3.86682887]
[1763800239421,0.471,2734.4,2733.6,1.41767553]
[1763800239626,0.471,2734.4,2733.7,0.405504]
[1763800240222,0.471,2734.4,2733.8,0.124]
[1763800240450,0.471,2734.4,2733.9,0.405504]
[1763800242059,0.471,2734.8,2733.9,0.872404]
[1763800242216,0.471,2734.8,2734.0,0.55612952]
[1763800242419,0.471,2734.8,2734.1,1.31249664]
[1763800242637,0.471,2734.8,2734.0,4.21377399]
[1763800242638,0.471,2734.8,2734.3,0.405504]
[1763800244274,0.471,2734.8,2734.4,3.802]
[1763800245573,0.4651,2734.5,2734.4,4.70899264]
[1763800245773,0.471,2734.8,2734.4,5.2328423]
[1763800247973,0.473,2735.0,2734.4,5.2328423]
[1763800248471,0.473,2735.0,2734.4,0.52384966]
[1763800248783,0.4651,2734.5,2734.2,0.405504]
[1763800248994,0.4651,2734.5,2734.1,0.90699264]
[1763800249214,0.2126,2734.2,2734.0,0.55612952]
[1763800249411,0.2126,2734.2,2733.9,0.406504]
[1763800249708,0.471,2734.2,2734.0,0.124]
[1763800250195,0.471,2734.9,2734.1,0.4662]
[1763800250564,0.002,2735.0,2734.2,0.405504]
[1763800250764,0.002,2735.0,2734.2,0.872404]
[1763800251492,0.002,2735.0,2734.4,0.405504]
[1763800251710,0.002,2735.0,2734.5,0.124]
[1763800252003,0.473,2735.0,2734.5,0.124]
[1763800252316,0.4651,2734.6,2734.5,0.124]
[1763800253168,0.002,2735.0,2734.5,0.124]
[1763800253371,0.473,2735.0,2734.5,0.124]
[1763800253879,0.471,2734.9,2734.5,0.124]
[1763800254569,0.4651,2734.6,2734.5,0.124]
[1763800254765,0.4651,2734.6,2734.5,0.48329926]
[1763800255002,0.9361,2734.6,2734.5,0.124]
[1763800255503,0.473,2735.0,2734.5,0.124]
[1763800256068,0.4651,2734.6,2734.5,0.124]
[1763800256592,0.9361,2734.6,2734.4,0.124]
[1763800257090,0.3687,2734.5,2734.4,0.124]
[1763800258589,0.471,2734.8,2734.4,0.124]
[1763800260386,0.4651,2734.5,2734.4,0.124]
[1763800260986,0.471,2734.8,2734.4,0.124]
[1763800261187,0.471,2734.8,2733.9,0.001]
[1763800261188,0.4651,2734.5,2733.9,0.001]
[1763800261377,0.4641,2734.0,2733.9,0.001]
[1763800261594,0.4641,2734.0,2733.9,0.9513544]
[1763800261911,0.471,2734.4,2733.9,0.530504]
[1763800262214,0.471,2734.4,2734.1,0.001]
[1763800262588,0.4651,2734.2,2734.1,0.001]
[1763800262987,0.9361,2734.2,2734.1,0.001]
[1763800263192,0.9361,2734.2,2734.1,0.125]
[1763800263388,0.9361,2734.2,2734.1,0.001]
[1763800263814,0.471,2734.6,2734.1,0.001]
[1763800264001,0.4651,2734.2,2734.1,0.001]
[1763800264610,0.9361,2734.2,2734.1,0.001]
[1763800267800,1.12040926,2734.2,2734.1,0.001]
[1763800268120,1.12040926,2734.2,2733.9,0.001]
[1763800268316,0.3687,2734.0,2733.9,0.001]
[1763800268818,0.8575,2734.0,2733.9,0.001]
[1763800272413,0.90899264,2735.0,2733.9,0.001]
[1763800272698,0.4888,2734.4,2733.9,0.001]
[1763800273312,0.4591,2734.0,2733.9,0.001]
[1763800274605,0.9479,2734.0,2733.9,0.001]
[1763800275020,0.4888,2734.5,2733.9,0.001]
[1763800275228,0.04571386,2734.4,2733.9,0.001]
[1763800275385,0.04571052,2734.6,2733.9,0.001]
[1763800275590,0.53451052,2734.6,2733.9,0.001]
[1763800276287,0.4591,2734.0,2733.9,0.001]
[1763800277197,0.9479,2734.0,2733.9,0.001]
[1763800280540,0.4591,2734.0,2733.9,0.001]
[1763800280695,0.002,2734.2,2733.9,0.001]
[1763800280899,0.4908,2734.2,2733.9,0.001]
[1763800281215,0.002,2734.2,2733.9,0.001]
[1763800282027,0.002,2734.2,2734.1,0.4516]
[1763800282412,0.002,2734.2,2734.1,0.9316]
[1763800283097,0.002,2734.2,2734.1,1.11555926]
[1763800283895,0.002,2734.2,2734.1,5.32306326]
[1763800284394,0.002,2734.2,2734.1,8.98057395]
[1763800285019,0.002,2734.2,2734.1,9.88756659]
[1763800285815,0.002,2734.2,2734.1,6.2300559]
[1763800286126,0.002,2734.2,2734.1,6.3540559]
[1763800286307,0.002,2734.2,2734.1,10.01156659]
[1763800286503,0.002,2734.2,2734.1,6.3540559]
[1763800287109,0.4611,2734.2,2733.9,0.001]
[1763800287331,0.4591,2734.0,2733.9,0.001]
[1763800287505,0.4591,2733.7,2733.3,0.001]
[1763800287710,0.3701,2733.4,2733.3,0.001]
[1763800288032,1.51614756,2733.4,2732.6,0.001]
[1763800288235,0.4572,2733.0,2732.6,0.001]
[1763800288724,0.946,2733.0,2732.6,0.001]
[1763800293253,0.90699264,2733.7,2732.6,0.001]
[1763800293456,0.4591,2733.0,2732.6,0.001]
[1763800293799,0.9479,2733.0,2732.6,0.001]
[1763800295699,0.4523,2733.4,2732.6,0.001]
[1763800295924,0.4523,2733.3,2732.6,0.001]
[1763800296535,0.4671,2733.0,2732.6,0.001]
[1763800297345,0.4523,2733.3,2732.6,0.001]
[1763800297856,1.02639797,2733.3,2732.6,0.001]
[1763800298203,1.08899264,2733.9,2732.6,0.001]
[1763800298204,0.4523,2733.6,2732.6,0.001]
[1763800298411,0.4523,2733.6,2732.7,0.4615]
[1763800298810,0.6343,2733.9,2732.8,0.4615]
[1763800299048,0.7583,2733.9,2732.8,0.4615]
[1763800299242,0.6343,2733.9,2733.0,0.4615]
[1763800299615,0.182,2733.9,2733.1,0.1576]
[1763800300248,0.0457239,2733.8,2732.9,0.001]
[1763800300542,0.6343,2733.9,2732.9,0.4625]
[1763800301147,0.57402477,2733.8,2732.9,0.4625]
[1763800301321,1.02632477,2733.8,2732.9,0.4625]
[1763800301522,0.4523,2733.7,2732.9,0.001]
[1763800302544,0.04572724,2733.6,2732.9,0.001]
[1763800302842,0.124,2733.6,2732.9,0.001]
[1763800303013,0.4523,2733.5,2732.9,0.001]
[1763800305546,0.4671,2733.0,2732.9,0.001]
[1763800305953,0.9194,2733.0,2732.9,0.001]
[1763800310627,1.49352016,2733.0,2732.9,0.001]
[1763800311428,0.57412016,2733.0,2732.9,0.001]
[1763800311619,0.57412016,2733.0,2732.9,0.485]
[1763800312917,0.4523,2733.5,2732.9,0.485]
[1763800313241,0.57409823,2733.3,2732.9,0.001]
[1763800313630,0.4523,2733.2,2732.9,0.001]
[1763800314948,0.57609823,2733.3,2732.9,0.001]
[1763800315249,1.02839823,2733.3,2732.9,0.001]
[1763800316354,0.57609823,2733.3,2732.9,0.001]
[1763800316674,0.57609823,2733.3,2733.2,0.6416]
[1763800317032,1.49549823,2733.3,2732.9,0.001]
[1763800317235,0.4671,2733.0,2732.9,0.001]
[1763800317478,0.51283728,2733.0,2732.9,0.001]
[1763800317686,0.9194,2733.0,2732.9,0.001]
[1763800318479,0.4543,2733.3,2732.9,0.001]
[1763800319044,0.50003226,2733.3,2732.9,0.001]
[1763800319660,0.4671,2733.0,2732.9,0.001]
[1763800320171,0.9194,2733.0,2732.9,0.001]
[1763800322183,1.0434,2733.0,2732.9,0.001]
[1763800324450,1.08913728,2733.0,2732.9,0.001]
[1763800324691,1.62307197,2733.0,2732.9,0.001]
[1763800324875,2.34760098,2733.0,2732.9,0.001]
[1763800326078,2.39333826,2733.0,2732.9,0.001]
[1763800326394,3.66009762,2733.0,2732.9,0.001]
[1763800326557,3.7058349,2733.0,2732.9,0.001]
[1763800326893,0.405504,2732.9,2732.6,0.001]
[1763800327196,5.67068699,2732.7,2732.6,0.001]
[1763800327344,6.57767963,2732.7,2732.6,0.001]
[1763800327544,7.04577963,2732.7,2732.6,0.001]
[1763800327948,0.405504,2732.5,2732.0,0.001]
[1763800328296,1.03285132,2732.4,2732.0,0.001]
[1763800328498,1.71759664,2732.1,2732.0,0.001]
[1763800328668,2.98289625,2732.1,2732.0,0.001]
[1763800330400,2.57739225,2732.1,2732.0,0.001]
[1763800330659,3.55724967,2732.1,2732.0,0.001]
[1763800330821,3.60300202,2732.1,2732.0,0.001]
[1763800331744,2.24475303,2732.1,2732.0,0.001]
[1763800331913,1.57155342,2732.1,2732.0,0.001]
[1763800333108,6.65964041,2732.1,2732.0,0.001]
[1763800333313,7.6123854,2732.1,2732.0,0.001]
[1763800333608,8.33451626,2732.1,2732.0,0.001]
[1763800334051,7.76016284,2732.1,2732.0,0.001]
[1763800334277,8.53617912,2732.1,2732.0,0.001]
[1763800336276,2.55620892,2732.1,2732.0,0.001]
[1763800336477,5.32693954,2732.7,2732.0,0.485]
[1763800336478,0.1852,2732.7,2732.0,0.485]
[1763800336648,0.124,2732.6,2732.0,0.485]
[1763800336840,0.5921,2732.6,2732.0,0.001]
[1763800337040,0.4576,2732.1,2732.0,0.001]
[1763800337271,0.5816,2732.1,2732.0,0.001]
[1763800337453,1.0497,2732.1,2732.0,0.001]
[1763800337650,1.62407054,2732.1,2732.0,0.001]
[1763800338471,4.03687445,2732.1,2732.0,0.001]
[1763800338646,4.6215429,2732.1,2732.0,0.001]
[1763800338855,4.62155357,2732.1,2732.0,0.001]
[1763800339259,2.49601628,2732.1,2732.0,0.001]
[1763800339562,2.90152028,2732.1,2732.0,0.001]
[1763800339767,2.49601628,2732.1,2732.0,0.001]
[1763800339962,3.71444807,2732.1,2732.0,0.001]
[1763800340167,3.80851292,2732.1,2732.0,0.001]
[1763800342202,3.40300892,2732.1,2732.0,0.001]
[1763800342774,3.40300892,2732.1,2730.4,3.66237007]
[1763800342775,27.074755,2731.7,2729.4,0.0919]
[1763800342974,0.405504,2730.5,2729.1,0.0919]